bitfinex-derivatives/quotes_ETHF0:USTF0_20251204
["timestamp","ask_amount","ask_price","bid_price","bid_amount"]
[1764855973237,0.15763,3171.7,3171.0,0.7955]
[1764855973238,54.51302435,3171.7,3171.0,0.7955]
[1764855973443,1.67464209,3171.1,3171.0,0.7955]
[1764855973655,15.23003644,3171.1,3171.0,0.7955]
[1764855973948,15.23003644,3171.1,3171.0,4.47830278]
[1764855974253,1.00739435,3171.1,3171.0,5.22500278]
[1764855974448,13.55539435,3171.1,3171.0,5.22500278]
[1764855974648,2.68141419,3171.1,3171.0,5.93280278]
[1764855974853,13.56139435,3171.1,3171.0,5.93280278]
[1764855975244,15.23541419,3171.1,3171.0,5.93280278]
[1764855975649,15.23541419,3171.1,3171.0,5.22500278]
[1764855976147,13.56139435,3171.1,3171.0,5.93280278]
[1764855976454,13.56139435,3171.1,3171.0,5.22500278]
[1764855976752,13.56139435,3171.1,3171.0,4.47830278]
[1764855976957,13.56639435,3171.1,3171.0,5.93280278]
[1764855977550,13.56639435,3171.1,3171.0,4.47830278]
[1764855977849,3.24025047,3171.1,3171.0,0.79950358]
[1764855978051,7.00739435,3171.1,3169.5,0.7955]
[1764855978254,2.3338719,3169.6,3169.5,1.5422]
[1764855978555,48.34426625,3169.6,3169.5,2.25]
[1764855978741,41.80739435,3169.6,3169.5,5.60657522]
[1764855979052,0.00472925,3169.9,3169.8,1.4545]
[1764855979256,1.6798027,3169.9,3169.8,1.4545]
[1764855979751,12.62,3170.5,3170.4,0.7955]
[1764855979952,53.428,3170.7,3170.6,1.4545]
[1764855980153,40.8,3170.7,3170.6,1.4545]
[1764855980454,12.628,3171.2,3171.0,0.7955]
[1764855980851,12.63056902,3171.2,3171.0,0.7955]
[1764855981245,14.96444092,3171.2,3171.0,0.7955]
[1764855981546,14.96444092,3171.2,3171.1,1.4545]
[1764855981547,0.00256902,3171.2,3171.1,1.4545]
[1764855982853,2.33644092,3171.2,3171.1,0.7467]
[1764855983050,2.33644092,3171.2,3171.0,0.7955]
[1764855983254,0.00256902,3171.2,3171.0,0.7955]
[1764855983756,0.00256902,3171.2,3171.1,1.4545]
[1764855986855,0.00472925,3171.4,3171.3,1.4545]
[1764855987747,0.00713607,3171.4,3171.3,1.4545]
[1764855988448,12.63113607,3171.4,3171.3,3.35657522]
[1764855988656,12.9904554,3171.4,3171.0,0.7955]
[1764855988958,2.3338719,3171.2,3171.1,1.67677252]
[1764855989254,2.3338719,3171.2,3170.8,0.00472925]
[1764855989255,2.69319123,3171.2,3170.8,0.00472925]
[1764855989558,0.35931933,3171.1,3170.8,0.00472925]
[1764855990073,6.0,3171.0,3169.8,0.7955]
[1764855990357,2.4915519,3170.8,3170.5,0.7955]
[1764855990554,12.33031933,3170.7,3170.6,1.4545]
[1764855990861,53.422,3170.9,3170.8,0.7467]
[1764855991153,41.99138126,3170.9,3170.5,0.7955]
[1764855991354,1.19142106,3170.8,3170.5,0.7955]
[1764855991553,0.83234864,3170.7,3170.5,0.7955]
[1764855991753,0.83234864,3170.6,3170.5,1.5422]
[1764855992061,0.83234864,3170.7,3170.6,1.67677252]
[1764855992359,1.19142003,3170.7,3170.6,1.67677252]
[1764855992859,7.19142003,3170.7,3169.8,0.7955]
[1764855993061,2.3338719,3170.3,3170.0,1.67677252]
[1764855993253,13.81142003,3170.2,3169.9,1.67677252]
[1764855993454,1.19142003,3170.1,3169.9,1.67677252]
[1764855993654,1.19142003,3170.0,3169.5,0.79834534]
[1764855993857,1.19142003,3169.9,3169.5,0.79834534]
[1764855994056,0.83237156,3169.8,3169.5,0.79834534]
[1764855994258,13.45137156,3169.7,3169.6,0.7467]
[1764855994458,0.83237156,3169.7,3169.6,2.0619]
[1764855994661,0.15767,3170.8,3170.5,1.0128]
[1764855994862,12.619,3170.7,3170.5,1.0128]
[1764855995162,0.35894661,3170.6,3170.5,1.67677252]
[1764855995358,0.35894661,3170.6,3170.5,2.68957252]
[1764855995566,12.97694661,3170.6,3170.5,2.68957252]
[1764855998159,0.15769,3170.5,3170.0,1.0128]
[1764855998359,0.35894661,3170.4,3170.3,2.718]
[1764855998868,0.35894661,3170.5,3170.4,1.0128]
[1764855999761,2.58512201,3170.5,3170.4,1.0128]
[1764855999966,0.35894661,3170.5,3170.4,1.67677252]
[1764856000156,0.15769,3170.4,3170.0,1.0128]
[1764856000466,5.11695545,3170.2,3170.0,1.0128]
[1764856000662,12.97194661,3170.1,3170.0,1.0128]
[1764856001170,15.75503016,3170.1,3169.5,0.79834534]
[1764856001359,0.35894661,3170.0,3169.8,0.41915545]
[1764856001557,0.35894661,3169.9,3169.8,0.41915545]
[1764856001851,41.15894661,3169.9,3169.8,0.41915545]
[1764856002466,41.31666661,3169.9,3169.8,0.41915545]
[1764856003559,41.15894661,3169.9,3169.8,3.51245545]
[1764856003768,56.01298406,3169.9,3169.8,0.41915545]
[1764856003966,53.76794661,3169.9,3169.8,0.41915545]
[1764856004263,56.0131711,3169.9,3169.8,0.41915545]
[1764856004858,53.76794661,3169.9,3169.8,0.41915545]
[1764856005167,53.76794661,3169.9,3169.8,3.85635545]
[1764856005465,1.68449593,3170.2,3170.1,3.4372]
[1764856005661,2.03355816,3170.2,3170.1,3.4372]
[1764856005862,0.34906223,3170.2,3170.1,3.4372]
[1764856006659,0.34906223,3170.3,3170.2,3.4372]
[1764856006860,1.17552778,3170.3,3170.2,3.4372]
[1764856007864,0.82646555,3170.3,3170.2,3.4372]
[1764856008060,2.2450727,3170.9,3170.5,1.0637]
[1764856008366,0.34922024,3170.8,3170.5,1.0637]
[1764856008668,0.34922024,3170.9,3170.8,3.4372]
[1764856009165,0.34922024,3170.9,3170.8,1.7467]
[1764856009464,0.34922024,3170.9,3170.5,1.0637]
[1764856009862,0.34922024,3170.9,3170.8,3.4372]
[1764856010257,0.34922024,3170.9,3170.8,1.7467]
[1764856010769,0.34922024,3170.9,3170.8,3.4372]
[1764856011864,0.34922024,3170.9,3170.0,1.0637]
[1764856012062,0.15772,3169.9,3168.5,1.0637]
[1764856012365,2.10173542,3169.6,3168.5,1.0637]
[1764856012559,2.45095566,3169.6,3168.5,1.0637]
[1764856012761,2.45095566,3169.6,3169.5,1.21750079]
[1764856013571,43.25095566,3169.6,3169.5,1.21750079]
[1764856014268,43.2508807,3169.6,3169.5,2.96420079]
[1764856014668,41.14914528,3169.6,3169.5,4.65470079]
[1764856014965,0.34914528,3169.6,3169.5,4.65470079]
[1764856015271,0.34914528,3170.0,3169.9,1.7467]
[1764856015471,41.14914528,3170.0,3169.5,1.21750079]
[1764856015671,0.34914528,3169.9,3169.8,3.4372]
[1764856018273,0.34914528,3169.9,3169.5,1.21750079]
[1764856019268,0.34914528,3169.9,3169.7,1.7467]
[1764856020169,0.34914528,3169.9,3169.5,1.21750079]
[1764856020170,3.2610704,3169.8,3169.5,1.21750079]
[1764856020368,13.76733498,3169.7,3169.5,1.21750079]
[1764856020669,1.15933498,3169.6,3169.5,1.21750079]
[1764856021367,5.66620112,3169.6,3168.5,1.0637]
[1764856021568,2.10173542,3169.0,3168.7,3.4372]
[1764856021769,1.15933498,3168.9,3168.8,3.4372]
[1764856021972,12.607,3169.0,3168.9,3.4372]
[1764856022374,12.60998006,3169.0,3168.9,3.44012638]
[1764856023072,0.00472925,3169.4,3169.3,3.4372]
[1764856024077,0.00734398,3169.4,3169.3,3.4372]
[1764856024574,4.00113542,3169.8,3169.5,1.1116]
[1764856025581,4.00471528,3169.8,3169.5,1.1116]
[1764856026078,0.00357986,3169.8,3169.7,3.3145]
[1764856030064,2.10173542,3170.6,3170.5,4.4261]
[1764856030279,7.21813542,3170.6,3170.0,1.1116]
[1764856030468,7.21813542,3170.6,3169.5,1.1116]
[1764856030469,5.55153542,3170.1,3169.5,1.1116]
[1764856030675,5.55153542,3170.1,3170.0,1.6408]
[1764856031082,5.55153542,3170.1,3170.0,4.4261]
[1764856031083,2.10488466,3170.1,3170.0,4.4261]
[1764856031278,3.78078466,3170.1,3170.0,2.7524]
[1764856031877,0.00314924,3170.1,3170.0,4.4261]
[1764856033886,1.67904924,3170.1,3170.0,4.4261]
[1764856034081,18.95747393,3170.1,3170.0,1.1116]
[1764856035185,19.30464181,3170.1,3169.5,1.1116]
[1764856035481,3.77763542,3169.7,3169.6,1.6408]
[1764856035685,3.77763542,3169.7,3169.3,0.00472925]
[1764856035686,15.84963662,3169.7,3169.3,3.31922925]
[1764856035886,3.4498,3169.4,3169.3,1.64552925]
[1764856036083,4.60371217,3169.4,3169.3,0.00472925]
[1764856036276,2.82981217,3169.4,3169.3,1.64552925]
[1764856036481,43.62981217,3169.4,3169.3,3.31922925]
[1764856036989,41.95391217,3169.4,3169.3,3.31922925]
[1764856037488,40.8,3169.4,3169.3,3.31922925]
[1764856038691,0.00314924,3170.1,3170.0,4.4261]
[1764856039394,1.67904924,3170.1,3170.0,1.1116]
[1764856039596,2.83380868,3170.1,3170.0,2.7524]
[1764856039896,1.15790868,3170.1,3170.0,4.4261]
[1764856040189,4.60770868,3170.1,3170.0,1.1116]
[1764856040382,2.83380868,3170.1,3170.0,2.7524]
[1764856040603,0.81058502,3170.1,3170.0,4.4261]
[1764856040980,0.00314924,3170.1,3170.0,4.4261]
[1764856041589,0.35077478,3170.1,3170.0,4.4261]
[1764856041890,0.35077478,3170.1,3170.0,2.7524]
[1764856041891,4.61255921,3170.1,3170.0,2.7524]
[1764856042094,1.16275921,3170.1,3170.0,4.4261]
[1764856042790,0.81513367,3170.1,3170.0,4.4261]
[1764856042981,0.00314924,3170.1,3170.0,4.4261]
[1764856043383,0.35083713,3170.1,3170.0,4.4261]
[1764856043581,1.16282156,3170.1,3170.0,4.4261]
[1764856043793,2.83872156,3170.1,3170.0,4.4261]
[1764856043987,4.61262156,3170.1,3170.0,1.1116]
[1764856044788,4.61262156,3170.1,3169.5,1.1116]
[1764856045093,15.86140774,3170.0,3169.5,1.1116]
[1764856045286,1.15967232,3169.9,3169.5,1.1116]
[1764856045485,1.15967232,3169.8,3169.7,3.3145]
[1764856046087,2.83557232,3169.8,3169.7,3.3145]
[1764856046290,4.60947232,3169.8,3169.5,1.1116]
[1764856046490,2.83557232,3169.7,3169.6,1.6408]
[1764856046986,2.83557232,3169.7,3169.6,3.3145]
[1764856047192,4.60947232,3169.7,3169.6,1.6408]
[1764856047593,3.4498,3169.6,3169.5,2.7524]
[1764856047893,4.26178443,3169.6,3169.5,2.7524]
[1764856048087,4.26178443,3169.6,3169.5,1.1116]
[1764856048394,3.4498,3169.4,3169.3,1.64552925]
[1764856048594,3.4498,3169.4,3169.3,0.00472925]
[1764856048892,0.8123507,3169.4,3169.3,3.31922925]
[1764856051594,2.4882507,3169.4,3169.3,3.31922925]
[1764856051998,0.8123507,3169.4,3169.3,3.31922925]
[1764856052197,2.83608506,3169.4,3169.3,3.31922925]
[1764856052692,4.60998506,3169.4,3169.3,1.64552925]
[1764856052890,1.16018506,3169.4,3169.3,3.31922925]
[1764856053087,0.8123507,3169.4,3169.3,3.31922925]
[1764856053294,14.2679,3169.7,3169.6,1.6408]
[1764856053596,17.20235175,3169.7,3169.6,1.6408]
[1764856053995,17.20235175,3169.7,3169.5,1.1116]
[1764856054191,3.2942,3169.4,3169.3,0.00472925]
[1764856054397,4.45473008,3169.4,3169.3,0.00472925]
[1764856054595,45.25473008,3169.4,3169.3,0.00472925]
[1764856056199,45.25473008,3169.4,3169.3,1.93562925]
[1764856056398,45.25473008,3169.4,3169.3,0.00472925]
[1764856057702,3.2942,3169.0,3168.5,1.1116]
[1764856057900,19.1434655,3169.0,3168.5,1.1116]
[1764856058097,0.81266824,3168.9,3168.8,3.8476]
[1764856058297,12.587,3169.3,3169.2,3.8476]
[1764856058496,13.74665998,3169.3,3169.2,3.8476]
[1764856058696,15.39375998,3169.3,3169.2,3.8476]
[1764856058898,15.39375998,3169.3,3169.2,3.8512683]
[1764856058899,1.15965998,3169.3,3169.2,3.8512683]
[1764856059105,3.45193,3169.7,3169.6,3.8476]
[1764856059400,3.2942,3169.6,3169.5,2.9785]
[1764856059610,4.45405609,3169.6,3169.5,2.9785]
[1764856059800,2.80695609,3169.6,3169.5,4.8952]
[1764856059998,1.15985609,3169.6,3169.5,4.8952]
[1764856061902,0.00314924,3170.1,3170.0,4.6477]
[1764856062097,12.58714924,3170.1,3170.0,4.6477]
[1764856062298,53.7347028,3170.1,3170.0,4.6477]
[1764856062702,53.7347028,3170.1,3170.0,2.827]
[1764856063192,53.7347028,3170.1,3169.5,1.0476]
[1764856063396,1.5022,3169.6,3169.5,4.5963]
[1764856063596,3.35195356,3169.6,3169.5,4.5963]
[1764856063805,1.84975356,3169.6,3169.5,4.5963]
[1764856064002,0.15771,3170.0,3169.8,3.5487]
[1764856064302,2.00749952,3170.0,3169.9,3.5487]
[1764856064602,3.50969952,3170.0,3169.9,3.5487]
[1764856065199,14.58849952,3170.0,3169.9,3.5487]
[1764856066205,15.93298952,3170.0,3169.5,1.0476]
[1764856066503,1.5022,3169.6,3169.5,1.0476]
[1764856066707,12.581,3170.0,3169.5,4.5963]
[1764856066906,0.34766177,3169.9,3169.8,3.5487]
[1764856067510,1.84986177,3169.9,3169.8,3.5487]
[1764856067805,3.35206177,3169.9,3169.8,1.728]
[1764856068505,3.35206177,3169.9,3169.5,1.0476]
[1764856068708,3.35206177,3169.8,3169.7,1.728]
[1764856068908,1.5022,3169.6,3169.5,2.7756]
[1764856069205,1.5022,3169.6,3169.5,4.5963]
[1764856069405,3.35214453,3169.6,3169.5,4.5963]
[1764856069604,3.35214453,3169.6,3169.5,2.7756]
[1764856069806,15.92814453,3169.6,3169.5,2.7756]
[1764856070203,16.08587453,3169.6,3169.2,0.0036683]
[1764856070408,3.0044,3169.3,3169.2,0.0036683]
[1764856070713,3.35214453,3169.3,3169.2,0.0036683]
[1764856071101,3.35214453,3169.3,3169.2,1.7316683]
[1764856071303,3.35214453,3169.3,3169.2,0.0036683]
[1764856073113,44.30989453,3169.3,3169.2,0.0036683]
[1764856073412,3.0044,3169.1,3169.0,1.0476]
[1764856073615,15.92814453,3169.1,3169.0,2.7756]
[1764856073816,15.92814453,3169.1,3169.0,4.5963]
[1764856074004,16.73597931,3169.1,3169.0,4.5963]
[1764856074209,16.73597931,3169.1,3169.0,4.59953678]
[1764856075614,16.73597931,3169.1,3169.0,2.77883678]
[1764856075913,1.15557931,3169.1,3169.0,4.59953678]
[1764856077916,2.65777931,3169.1,3169.0,4.59953678]
[1764856078210,2.65777931,3169.1,3169.0,1.05083678]
[1764856078211,4.15997931,3169.1,3169.0,1.05083678]
[1764856079711,44.95997931,3169.1,3169.0,1.05083678]
[1764856080118,44.95997931,3169.1,3169.0,0.00323678]
[1764856080416,3.0044,3168.6,3168.5,2.8396]
[1764856080612,4.15997931,3168.6,3168.5,2.8396]
[1764856081204,4.15997931,3168.6,3168.0,1.099]
[1764856081407,4.82507931,3168.5,3168.4,1.728]
[1764856081609,4.82507931,3168.5,3168.4,3.5487]
[1764856082219,4.82507931,3168.5,3168.4,1.728]
[1764856082723,1.8336,3168.1,3168.0,4.65123128]
[1764856083417,3.6695,3168.1,3168.0,4.65123128]
[1764856084013,3.6695,3168.1,3168.0,4.57483128]
[1764856084415,3.6695,3168.1,3168.0,1.10253128]
[1764856084616,1.70052925,3168.6,3168.5,4.5516]
[1764856084924,12.569,3169.2,3169.0,4.5516]
[1764856085124,41.95304696,3169.1,3169.0,4.5516]
[1764856085321,41.95304696,3169.1,3169.0,2.8073]
[1764856085520,17.09454696,3169.1,3169.0,4.5516]
[1764856087416,17.09454696,3169.1,3169.0,2.8073]
[1764856087721,17.09454696,3169.1,3169.0,4.5516]
[1764856088420,2.84884696,3169.1,3169.0,4.5516]
[1764856089118,4.52554696,3169.1,3169.0,4.5516]
[1764856090022,4.52554696,3169.1,3169.0,0.998]
[1764856090224,4.52554696,3169.1,3168.7,0.00472925]
[1764856090423,12.565,3169.2,3168.7,0.00472925]
[1764856090424,1.6958,3168.8,3168.7,3.55832925]
[1764856091018,3.3725,3168.8,3168.7,3.55832925]
[1764856091213,1.6958,3168.8,3168.7,3.55832925]
[1764856091418,12.565,3169.2,3168.7,3.55832925]
[1764856091727,4.52673727,3169.1,3169.0,1.8093]
[1764856092224,3.3725,3168.8,3168.7,1.81402925]
[1764856092421,3.53025,3169.2,3169.1,3.5536]
[1764856092617,1.6958,3168.8,3168.7,3.55832925]
[1764856093019,3.3725,3168.8,3168.7,1.81402925]
[1764856094026,3.53025,3169.2,3169.1,3.5536]
[1764856094227,4.68521374,3169.2,3169.1,3.5536]
[1764856094430,13.71996374,3169.2,3169.1,3.5536]
[1764856094625,1.15496374,3169.2,3169.1,3.5536]
[1764856094826,0.00472925,3169.4,3169.3,3.5536]
[1764856095030,11.33957184,3170.4,3169.8,3.5536]
[1764856095031,41.95547234,3169.9,3169.8,3.5536]
[1764856097231,40.8,3169.9,3169.8,3.5536]
[1764856097636,12.57014924,3170.1,3170.0,4.5516]
[1764856097831,1.159191,3170.1,3170.0,4.5516]
[1764856098736,0.81159153,3170.1,3170.0,4.5516]
[1764856099533,0.00314924,3170.1,3170.0,4.5516]
[1764856100745,4.924e-05,3170.1,3170.0,4.5516]
[1764856101147,12.56,3170.6,3170.5,4.5516]
[1764856101443,0.15765,3171.3,3170.7,3.5536]
[1764856101444,10.5978,3170.8,3170.7,3.5536]
[1764856101743,54.231711,3170.8,3170.7,3.5536]
[1764856101932,52.555011,3170.8,3170.7,3.5536]
[1764856102241,0.00357856,3170.8,3170.7,3.55726915]
[1764856103038,0.00472925,3171.1,3171.0,4.5516]
[1764856104039,0.00725526,3171.1,3171.0,4.5516]
[1764856104945,1.70305526,3171.1,3171.0,4.5516]
[1764856105142,3.3725,3170.8,3170.7,0.00366915]
[1764856106950,3.3725,3170.8,3170.7,1.81296915]
[1764856107943,3.3725,3170.8,3170.7,0.00366915]
[1764856109445,1.6958,3170.1,3170.0,4.5516]
[1764856109642,3.3725,3170.1,3170.0,4.5516]
[1764856109844,1.6958,3170.1,3170.0,4.5516]
[1764856110245,12.554,3170.4,3170.0,4.55542794]
[1764856110441,14.2508,3170.4,3170.3,3.5536]
[1764856110850,44.1725,3170.4,3170.3,3.5536]
[1764856111150,0.00725526,3171.1,3170.3,3.5536]
[1764856111344,0.00725526,3171.1,3170.9,3.5536]
[1764856111550,0.00725526,3171.1,3170.5,0.998]
[1764856111551,0.00725526,3171.1,3171.0,4.5516]
[1764856111842,3.3725,3170.1,3170.0,1.00182794]
[1764856112047,5.871196,3170.1,3170.0,0.00382794]
[1764856112243,3.53022,3169.8,3169.0,0.998]
[1764856112440,11.04243648,3169.7,3169.0,0.998]
[1764856112642,40.8,3169.6,3169.0,0.998]
[1764856113352,40.8,3169.6,3169.0,1.00652032]
[1764856114352,1.6958,3169.1,3169.0,2.81582032]
[1764856114551,1.6958,3169.1,3169.0,4.60052032]
[1764856114749,1.74412925,3169.4,3169.3,3.5458]
[1764856115050,3.55652925,3169.4,3169.3,1.7611]
[1764856115253,3.55652925,3169.4,3169.0,1.00652032]
[1764856117056,3.5518,3169.1,3169.0,0.00852032]
[1764856117350,5.892786,3169.1,3169.0,0.00852032]
[1764856118152,5.892786,3169.1,3168.0,0.998]
[1764856118353,3.5518,3168.1,3168.0,2.7591]
[1764856118657,43.140986,3168.1,3167.5,4.5438]
[1764856118851,40.8,3168.1,3168.0,4.5054]
[1764856119255,40.80251323,3168.1,3168.0,4.50815263]
[1764856120154,40.80251323,3168.1,3168.0,0.00275263]
[1764856120546,40.80251323,3168.1,3168.0,4.50815263]
[1764856120753,0.00251323,3168.1,3168.0,4.50815263]
[1764856121150,3.55431323,3168.1,3168.0,0.00275263]
[1764856121355,40.80251323,3168.1,3168.0,4.50264737]
[1764856122257,40.80251323,3168.1,3167.5,0.998]
[1764856122460,40.80251323,3168.1,3167.5,1.00174751]
[1764856122859,40.80251323,3168.1,3168.0,3.9005]
[1764856123658,2.915586,3169.5,3168.0,9.9005]
[1764856123956,2.825686,3169.0,3168.0,3.9005]
[1764856124151,40.8,3168.9,3168.0,3.9005]
[1764856124352,40.8,3168.9,3168.8,1.4893]
[1764856124553,40.8,3168.9,3168.8,2.9946]
[1764856124752,40.80396857,3168.9,3168.8,2.9946]
[1764856124955,0.00396857,3168.9,3168.8,2.9946]
[1764856126261,0.00472925,3169.4,3169.3,2.9946]
[1764856126450,1.46522925,3169.4,3169.3,2.9946]
[1764856126656,2.93322925,3169.4,3169.0,0.9059]
[1764856126957,43.73322925,3169.4,3169.0,0.9059]
[1764856127162,43.73322925,3169.4,3169.0,2.3952]
[1764856127163,1.4605,3169.1,3169.0,2.3952]
[1764856127361,1.4605,3169.1,3168.5,0.9059]
[1764856127362,2.93115851,3169.1,3168.5,0.9059]
[1764856127854,2.93115851,3169.1,3168.0,0.9059]
[1764856127855,2.9285,3168.6,3168.0,0.9059]
[1764856129965,0.16041851,3169.1,3168.6,2.9946]
[1764856130156,12.578,3168.9,3168.6,2.9946]
[1764856131262,1.4605,3168.6,3168.0,0.9059]
[1764856131466,0.00265851,3169.1,3168.8,2.9946]
[1764856131653,2.9285,3168.9,3168.5,0.9059]
[1764856132364,2.10739823,3169.1,3168.8,2.9946]
[1764856132559,3.56789823,3169.1,3169.0,2.3952]
[1764856132867,5.03589823,3169.1,3168.5,0.9059]
[1764856133263,0.00265851,3169.1,3169.0,3.9005]
[1764856140568,1.69029756,3170.1,3169.0,3.9005]
[1764856140569,1.69029756,3170.6,3170.1,2.9946]
[1764856140773,1.4605,3169.6,3169.5,2.3952]
[1764856140961,1.4605,3169.6,3169.5,2.9946]
[1764856141365,14.0365,3170.1,3170.0,1.4893]
[1764856141564,14.03957575,3170.1,3170.0,2.99836259]
[1764856141771,0.00307575,3170.1,3170.0,3.90426259]
[1764856143065,0.00472925,3170.4,3170.0,3.90426259]
[1764856143066,0.00472925,3170.4,3170.3,2.9946]
[1764856143266,2.93322925,3170.4,3170.3,1.4893]
[1764856143574,2.93322925,3170.4,3170.3,2.9946]
[1764856143575,0.00472925,3170.4,3170.3,2.9946]
[1764856144162,0.00869862,3170.4,3170.3,2.9946]
[1764856144774,40.8,3171.0,3170.0,0.90966259]
[1764856144775,40.8,3171.0,3170.5,0.9074]
[1764856145475,1.4879,3170.6,3170.5,2.3693]
[1764856145670,1.49011985,3170.6,3170.5,3.8365]
[1764856145971,1.49011985,3170.6,3170.0,0.00376259]
[1764856145972,3.0476,3170.1,3170.0,0.00376259]
[1764856146174,5.15233972,3170.1,3170.0,0.00376259]
[1764856146472,17.73633972,3170.1,3170.0,0.00376259]
[1764856146673,58.53633972,3170.1,3170.0,0.00376259]
[1764856147173,3.0476,3169.8,3169.7,0.00472925]
[1764856147567,3.0476,3169.8,3169.7,1.46662925]
[1764856147769,1.4879,3169.8,3169.7,1.46662925]
[1764856148075,1.4879,3169.8,3169.7,1.46918979]
[1764856148265,42.90473972,3170.1,3170.0,1.4619]
[1764856148465,40.8,3170.1,3170.0,2.9291]
[1764856149468,40.8,3170.1,3169.7,0.00728979]
[1764856149669,42.90473972,3170.1,3169.7,0.00728979]
[1764856150172,1.4879,3169.8,3169.7,1.46918979]
[1764856150568,42.90473972,3170.1,3169.7,2.93638979]
[1764856150770,12.584,3170.2,3170.1,1.4619]
[1764856150976,12.584,3170.2,3170.1,2.9291]
[1764856151672,40.8,3170.5,3170.4,1.4619]
[1764856151878,40.8,3170.5,3170.4,2.9291]
[1764856152078,40.8,3170.5,3170.0,0.9074]
[1764856152376,40.8,3170.5,3170.0,2.9291]
[1764856152377,1.4879,3170.1,3170.0,2.9291]
[1764856152677,1.4879,3170.1,3170.0,3.8365]
[1764856153275,40.8,3170.5,3170.2,2.9291]
[1764856153475,40.8,3170.5,3170.4,1.4619]
[1764856153780,41.96090055,3170.5,3170.4,1.4619]
[1764856154169,41.61671323,3170.5,3170.4,2.9291]
[1764856154370,0.81671323,3170.5,3170.4,2.9291]
[1764856154670,12.58372925,3170.9,3170.5,3.8365]
[1764856154968,40.8,3170.8,3170.5,3.8365]
[1764856156176,3.04981985,3170.6,3170.0,0.9074]
[1764856157877,1.4879,3170.1,3170.0,2.3693]
[1764856158067,3.0476,3170.1,3170.0,2.3693]
[1764856158466,1.4879,3170.1,3170.0,3.8365]
[1764856158876,5.15233972,3170.3,3170.2,1.4619]
[1764856160082,5.96941395,3170.3,3170.2,1.4619]
[1764856160477,1.4879,3170.1,3170.0,3.8365]
[1764856160774,3.0476,3170.1,3170.0,1.4619]
[1764856160980,3.0476,3170.1,3169.7,0.00728979]
[1764856161879,1.4879,3169.8,3169.7,2.93638979]
[1764856162071,1.4879,3169.8,3169.7,1.46918979]
[1764856162383,1.4879,3169.8,613.57,1.12281003]
[1764856162384,13.25707944,3169.8,3168.5,0.9074]
[1764856162575,2.10473972,3169.1,3168.5,0.9074]
[1764856162778,2.83977972,3169.5,3168.5,0.9074]
[1764856162984,41.96208595,3169.4,3168.5,0.9074]
[1764856163180,1.16208595,3169.3,3168.5,0.9074]
[1764856163376,0.34957446,3169.2,3168.6,0.00472925]
[1764856163572,0.81724074,3169.1,3168.6,0.00472925]
[1764856164192,1.4879,3168.7,3168.6,2.93382925]
[1764856164879,0.00472925,3169.2,3168.6,2.93382925]
[1764856165281,1.16702768,3169.2,3168.6,2.93382925]
[1764856165480,0.81739846,3169.1,3168.6,2.93382925]
[1764856165787,0.00472925,3169.2,3168.6,2.93382925]
[1764856166186,1.16692042,3169.2,3168.6,2.93382925]
[1764856166384,2.10473972,3169.0,3168.5,3.8365]
[1764856166588,1.16215457,3168.9,3168.5,3.8365]
[1764856166892,3.8649234,3168.9,3168.8,1.4619]
[1764856167092,4.20978058,3168.9,3168.8,1.4619]
[1764856167294,2.65008058,3168.9,3168.8,2.9291]
[1764856167487,3.05232925,3169.2,3169.1,1.4619]
[1764856167794,4.21401036,3169.2,3169.1,1.4619]
[1764856168586,0.00472925,3169.2,3169.1,2.9291]
[1764856169796,1.49262925,3169.2,3169.1,2.9291]
[1764856170389,0.00472925,3169.2,3169.1,2.9291]
[1764856172686,3.59263972,3170.0,3169.9,1.4619]
[1764856172894,1.4879,3169.6,3169.5,3.8365]
[1764856173087,2.10473972,3170.0,3169.5,3.8365]
[1764856173287,0.81663866,3169.9,3169.5,3.8365]
[1764856173993,3.73943866,3169.9,3169.8,1.4619]
[1764856174794,2.30453866,3169.9,3169.8,2.9981]
[1764856175390,0.81663866,3169.9,3169.8,2.9981]
[1764856175589,1.45742925,3170.0,3169.9,3.0766]
[1764856175788,1.45742925,3170.0,3169.9,1.5404]
[1764856175789,3.70949355,3170.0,3169.9,1.5404]
[1764856175993,4.05425242,3170.0,3169.9,1.5404]
[1764856176191,2.27459355,3170.0,3169.9,3.0766]
[1764856176590,2.61935657,3170.0,3169.9,3.0766]
[1764856176993,4.05425657,3170.0,3169.9,3.0766]
[1764856177302,4.05425657,3170.0,3169.9,1.5404]
[1764856177502,3.70949355,3170.0,3169.9,1.5404]
[1764856177798,3.70949355,3170.0,3169.9,3.0766]
[1764856178396,1.45742925,3170.0,3169.9,3.0766]
[1764856179095,0.00472925,3170.0,3169.9,3.0766]
[1764856179495,2.89232925,3170.0,3169.9,1.5404]
[1764856179802,1.4527,3169.6,3169.5,3.984]
[1764856180101,0.00472925,3170.0,3169.5,3.984]
[1764856180892,1.4527,3169.6,3169.5,3.984]
[1764856181094,0.00472925,3170.0,3169.5,3.984]
[1764856181496,2.89232925,3170.0,3169.9,1.5404]
[1764856181702,3.70943909,3170.0,3169.5,0.9074]
[1764856181897,2.89232925,3170.0,3169.5,0.9074]
[1764856183301,2.89232925,3170.0,3169.9,1.3456]
[1764856183503,3.70949597,3170.0,3169.9,1.3456]
[1764856185401,3.70976269,3170.0,3169.9,1.3456]
[1764856185597,2.5972,3169.6,3169.5,3.5745]
[1764856186003,2.5972,3169.6,3169.5,2.253]
[1764856186200,2.5972,3169.5,3169.4,0.00472925]
[1764856186499,0.00472925,3170.0,3169.9,2.6671]
[1764856186694,1.27722925,3170.0,3169.9,2.6671]
[1764856186894,2.94698338,3170.0,3169.9,2.6671]
[1764856187102,43.74698338,3170.0,3169.9,2.6671]
[1764856187903,1.2725,3169.6,3169.5,3.4603]
[1764856188204,41.55182925,3170.0,3169.5,3.4603]
[1764856188505,2.94236651,3169.9,3169.8,1.3456]
[1764856189002,2.5972,3169.6,3169.5,3.4603]
[1764856189200,2.5972,3169.6,3169.5,1.3456]
[1764856189502,3.0502,3169.5,3169.4,0.00472925]
[1764856189705,3.39541173,3169.5,3169.4,0.00472925]
[1764856190000,2.94241173,3169.5,3169.4,1.35032925]
[1764856190602,1.2725,3169.5,3169.4,2.67182925]
[1764856190803,41.55182925,3170.0,3169.5,0.7932]
[1764856191003,1.2725,3169.6,3169.5,3.4603]